bitfinex-derivatives/quotes_SOLF0:USTF0_20250905
["timestamp","ask_amount","ask_price","bid_price","bid_amount"]
[1757097980017,2.15545481,203.88,203.82,9.65545481]
[1757097980217,0.03191469,203.85,203.82,9.65545481]
[1757097980517,0.03191469,203.85,203.83,7.5]
[1757097980913,0.03191469,203.85,203.82,2.15545481]
[1757097981119,0.03191469,203.85,203.83,7.5]
[1757097981615,0.03191469,203.85,203.78,2.15545481]
[1757097981816,0.03191469,203.85,203.81,7.5]
[1757097982017,7.07345481,203.86,203.81,7.5]
[1757097982220,0.03708675,203.85,203.8,2.15545481]
[1757097982515,0.03708675,203.85,203.82,7.5]
[1757097982813,0.03708675,203.85,203.73,93.54]
[1757097982814,2.15545481,203.83,203.77,2.15545481]
[1757097983017,2.15545481,203.83,203.78,7.5]
[1757097983321,2.19017785,203.83,203.77,9.65545481]
[1757097984208,2.19017785,203.83,203.77,7.5]
[1757097985418,0.03472304,203.83,203.79,7.5]
[1757097985619,0.03472304,203.83,203.78,2.15545481]
[1757097985822,0.03472304,203.83,203.71,425.26]
[1757097986119,0.03472304,203.83,203.8,7.5]
[1757097986319,0.03472304,203.83,203.79,2.15545481]
[1757097986522,0.03472304,203.83,203.8,7.5]
[1757097987314,0.03472304,203.83,203.79,2.15545481]
[1757097987514,0.03472304,203.83,203.8,7.5]
[1757097987711,0.03472304,203.83,203.79,2.15545481]
[1757097989919,0.03472304,203.83,203.8,7.5]
[1757097990418,0.03472304,203.83,203.79,2.15545481]
[1757097991127,8.19472304,203.83,203.8,7.5]
[1757097991420,8.19472304,203.83,203.78,7.5]
[1757097991421,0.03472304,203.83,203.78,7.5]
[1757097991627,0.03472304,203.83,203.8,7.5]
[1757097992117,0.03472304,203.83,203.79,2.15545481]
[1757097992319,0.03472304,203.83,203.8,7.5]
[1757097992520,0.03472304,203.83,203.79,2.15545481]
[1757097992823,0.03472304,203.83,203.8,7.5]
[1757097993223,0.03472304,203.83,203.79,2.15545481]
[1757097993421,0.03472304,203.83,203.77,3.37170448]
[1757097993621,0.03472304,203.83,203.78,7.5]
[1757097994220,0.03472304,203.83,203.77,3.37170448]
[1757097994820,0.03472304,203.83,203.78,7.5]
[1757097995023,0.03472304,203.83,203.77,3.37170448]
[1757097995220,0.03472304,203.83,203.78,7.5]
[1757097995420,0.03472304,203.83,203.77,3.37170448]
[1757097996425,0.03472304,203.83,203.78,7.5]
[1757097996623,0.03472304,203.83,203.77,3.37170448]
[1757097997027,0.03472304,203.83,203.78,7.5]
[1757097998627,0.03472304,203.83,203.77,3.37170448]
[1757097999329,0.03472304,203.83,203.78,7.5]
[1757097999627,0.03472304,203.83,203.81,7.5]
[1757098000627,0.03472304,203.83,203.8,3.37170448]
[1757098000825,0.03472304,203.83,203.81,7.5]
[1757098001126,0.03472304,203.83,203.8,3.37170448]
[1757098001630,0.03472304,203.83,203.81,7.5]
[1757098002420,0.03472304,203.83,203.8,3.37170448]
[1757098003625,0.03472304,203.83,203.81,7.5]
[1757098003827,0.03472304,203.83,203.8,3.37170448]
[1757098004028,0.03472304,203.83,203.79,7.5]
[1757098004725,4.918,203.95,203.85,7.5]
[1757098004930,3.37170448,204.0,203.88,7.5]
[1757098005333,124.0,203.99,203.88,7.5]
[1757098005824,4.918,203.98,203.88,7.5]
[1757098006024,4.918,203.98,203.91,0.03195081]
[1757098006228,4.918,203.98,203.95,3.37170448]
[1757098006935,13.078,203.96,203.95,3.37170448]
[1757098007538,4.918,203.96,203.92,3.37170448]
[1757098007833,4.918,203.96,203.93,7.5]
[1757098008337,12.798,203.96,203.93,7.5]
[1757098009337,12.798,203.96,203.93,3.37170448]
[1757098010839,4.918,203.96,203.93,3.37170448]
[1757098011142,12.798,203.95,203.93,3.37170448]
[1757098012430,4.918,203.96,203.92,3.37170448]
[1757098012635,7.88,203.93,203.92,3.37170448]
[1757098013538,12.798,203.93,203.92,3.37170448]
[1757098014337,7.88,203.92,203.91,0.03195081]
[1757098015544,12.798,203.92,203.91,0.03195081]
[1757098016749,7.88,203.92,203.91,0.03195081]
[1757098016952,12.798,203.92,203.91,0.03195081]
[1757098019057,13.298,203.92,203.91,0.03195081]
[1757098019450,7.88,203.92,203.91,0.03195081]
[1757098019751,129.58,203.97,203.91,0.03195081]
[1757098020248,7.88,203.97,203.91,0.03195081]
[1757098020453,12.798,203.94,203.91,0.03195081]
[1757098020654,12.798,203.93,203.91,0.03195081]
[1757098022055,7.88,203.98,203.91,0.03195081]
[1757098022652,7.88,203.98,203.92,3.37170448]
[1757098023060,4.918,203.97,203.92,3.37170448]
[1757098023557,4.918,203.96,203.92,10.96170448]
[1757098023762,4.918,203.96,203.93,7.59]
[1757098024149,12.798,203.96,203.93,7.59]
[1757098024353,4.918,204.0,203.92,3.37170448]
[1757098024554,4.918,203.98,203.92,3.37170448]
[1757098024759,7.88,203.95,203.92,3.37170448]
[1757098026968,7.88,203.95,203.92,10.96170448]
[1757098027367,4.918,203.98,203.92,3.37170448]
[1757098027962,7.88,203.97,203.91,7.62195081]
[1757098028166,4.918,203.96,203.91,7.62195081]
[1757098028368,7.88,203.95,203.92,7.59]
[1757098028759,7.88,203.95,203.91,0.03195081]
[1757098029164,7.88,203.95,203.92,7.59]
[1757098030473,4.918,203.94,203.92,7.59]
[1757098031073,4.918,203.94,203.91,0.03195081]
[1757098031268,4.918,203.94,203.92,7.59]
[1757098031476,12.798,203.99,203.93,3.37170448]
[1757098033669,12.798,204.03,203.94,7.59]
[1757098034270,12.798,204.03,203.96,0.03194624]
[1757098044281,133.858,204.03,203.97,7.89]
[1757098045178,12.798,204.03,203.97,7.89]
[1757098053579,8.06,204.02,203.98,2.15418604]
[1757098053783,4.918,204.01,203.98,2.15418604]
[1757098053983,8.06,204.0,203.98,2.15418604]
[1757098057684,12.967,204.01,203.98,10.04418604]
[1757098058181,5.50545334,204.03,203.98,10.04418604]
[1757098058386,5.50545334,204.03,203.98,2.15418604]
[1757098058586,8.06,204.0,203.98,2.15418604]
[1757098058787,8.06,204.02,203.98,2.15418604]
[1757098058985,8.06,204.02,203.96,2.18613228]
[1757098059186,13.56545334,204.02,203.96,2.18613228]
[1757098059488,18.47245334,204.02,203.96,2.18613228]
[1757098061380,8.06,204.0,203.96,2.18613228]
[1757098061586,12.967,204.0,203.96,0.03194624]
[1757098061789,4.907,203.98,203.96,0.03194624]
[1757098061981,8.06,203.97,203.96,0.03194624]
[1757098062893,13.56545334,203.97,203.96,0.03194624]
[1757098064295,12.967,203.97,203.96,0.03194624]
[1757098066291,133.887,203.97,203.96,0.03194624]
[1757098071785,139.38752182,203.97,203.87,2.15418604]
[1757098071985,139.38752182,203.97,203.86,7.52]
[1757098071986,8.09,203.91,203.86,7.52]
[1757098072298,2.15418604,203.92,203.86,7.52]
[1757098072299,8.09,203.89,203.86,7.52]
[1757098072595,8.09,203.89,203.85,2.15418604]
[1757098072789,8.09,203.89,203.86,7.52]
[1757098072994,120.92,203.9,203.86,7.52]
[1757098073197,120.95379891,203.9,203.86,7.52]
[1757098073390,129.04379891,203.9,203.85,2.15418604]
[1757098073591,129.04379891,203.9,203.86,7.52]
[1757098074393,8.12379891,203.9,203.85,2.15418604]
[1757098074593,14.1,203.89,203.86,7.52]
[1757098075001,37.68379891,203.9,203.86,7.52]
[1757098076697,0.03379891,203.9,203.85,2.15418604]
[1757098076896,0.03379891,203.9,203.89,9.67418604]
[1757098077292,4.907,203.94,203.9,7.52]
[1757098077496,4.907,203.94,203.89,2.15418604]
[1757098077497,0.03398103,203.92,203.91,2.15418604]
[1757098078900,0.03398103,203.92,203.91,9.67418604]
[1757098087804,13.59052182,204.01,203.91,2.65418604]
[1757098088010,8.09,204.01,203.95,2.15418604]
[1757098088198,4.907,204.0,203.95,2.15418604]
[1757098088398,4.907,204.0,203.96,7.52]
[1757098088598,4.907,204.0,203.95,2.15418604]
[1757098089103,4.907,204.0,203.95,2.19172964]
[1757098089510,12.997,203.99,203.96,7.52]
[1757098091203,12.997,203.99,203.95,2.19172964]
[1757098091408,12.997,203.99,203.96,7.52]
[1757098092803,12.997,203.99,203.95,2.19172964]
[1757098093007,12.997,203.99,203.96,7.52]
[1757098094210,8.09,203.98,203.96,7.52]
[1757098097412,12.997,203.99,203.96,7.52]
[1757098098110,8.09,203.98,203.96,7.52]
[1757098098603,7.44,204.0,203.96,2.15418604]
[1757098098810,7.44,204.03,203.98,2.15418604]
[1757098099004,7.44,204.03,203.99,7.37]
[1757098099209,7.44,204.03,203.98,2.15418604]
[1757098099409,7.44,204.03,203.99,0.03618095]
[1757098099614,7.44,204.03,204.0,7.37]
[1757098100612,7.44,204.03,203.99,0.03618095]
[1757098100913,7.44,204.03,204.0,7.37]
[1757098101719,7.44,204.03,203.99,0.03618095]
[1757098101919,7.44,204.03,204.0,7.37]
[1757098103715,12.94052182,204.06,204.0,9.52418604]
[1757098103919,7.44,204.06,204.0,9.52418604]
[1757098104115,7.44,204.06,204.01,7.37]
[1757098104320,22.71821993,204.12,204.05,7.37]
[1757098104321,5.50052182,204.11,204.05,7.37]
[1757098104623,7.44,204.09,204.05,7.37]
[1757098104809,7.44,204.09,204.06,0.03435363]
[1757098105208,4.907,204.09,204.06,0.03435363]
[1757098105409,12.347,204.08,204.06,0.03435363]
[1757098105615,2.15418604,204.1,204.06,0.03435363]
[1757098105809,9.59418604,204.1,204.06,7.40435363]
[1757098106424,4.907,204.1,204.06,7.40435363]
[1757098106619,12.347,204.09,204.06,7.40435363]
[1757098108220,7.44,204.08,204.06,0.03435363]
[1757098111617,7.06118604,204.09,204.06,0.03435363]
[1757098111920,7.44,204.08,204.06,0.03435363]
[1757098113218,4.907,204.09,204.06,0.03435363]
[1757098113721,12.347,204.08,204.06,0.03435363]
[1757098114123,7.44,204.07,204.06,0.03435363]
[1757098114321,12.347,204.07,204.06,0.03435363]
[1757098118416,4.907,204.07,204.06,0.03435363]
[1757098118624,128.21679387,204.13,204.06,7.40435363]
[1757098118625,12.347,204.1,204.06,7.40435363]
[1757098120218,12.347,204.09,204.06,7.40435363]
[1757098121525,4.907,204.12,204.06,0.03435363]
[1757098121721,4.907,204.08,204.06,0.03435363]
[1757098121919,12.347,204.08,204.06,0.03435363]
[1757098122517,4.907,204.08,204.06,0.03435363]
[1757098122724,12.347,204.07,204.06,0.03435363]
[1757098129322,7.44,204.07,204.06,0.03435363]
[1757098129730,12.347,204.07,204.06,0.03435363]
[1757098130338,7.44,204.07,204.06,0.03435363]
[1757098130633,12.347,204.07,204.06,0.03435363]
[1757098130836,7.44,204.07,204.06,0.03435363]
[1757098131140,128.2,204.07,204.06,0.03435363]
[1757098131432,128.7,204.07,203.94,7.55]
[1757098131637,7.47,204.01,203.94,7.55]
[1757098132736,4.907,204.0,203.94,7.55]
[1757098134034,12.377,203.98,203.94,7.55]
[1757098134632,4.907,203.98,203.94,7.55]
[1757098134839,120.76,204.07,203.88,3.36367496]
[1757098134840,4.907,203.99,203.88,3.36367496]
[1757098135834,4.907,204.0,203.88,3.36367496]
[1757098136732,20.367,204.0,203.88,3.36367496]
[1757098136934,4.907,203.98,203.89,7.55]
[1757098137238,4.907,203.96,203.89,7.55]
[1757098142247,12.377,203.95,203.89,7.55]
[1757098144545,15.74067496,203.95,203.85,7.55]
[1757098144743,12.377,203.95,203.85,7.55]
[1757098144938,12.377,203.95,203.87,3.36367496]
[1757098145143,12.377,203.95,203.88,7.55]
[1757098150150,12.377,203.95,203.84,7.55]
[1757098151154,15.74067496,203.95,203.84,7.55]
[1757098151348,4.907,203.97,203.84,10.91367496]
[1757098151546,8.27067496,203.95,203.84,10.91367496]
[1757098152253,7.47,203.94,203.84,10.91367496]
[1757098152446,8.27067496,203.95,203.84,10.91367496]
[1757098152651,7.47,203.94,203.84,10.91367496]
[1757098152851,8.27067496,203.95,203.84,10.91367496]
[1757098153554,7.47,203.94,203.84,7.55]
[1757098153749,7.47,203.94,203.86,3.36367496]
[1757098153956,7.47,203.94,203.87,7.55]
[1757098154157,7.47,203.94,203.87,10.91367496]
[1757098154354,5.50052182,204.07,203.88,15.23]
[1757098154557,5.46554581,204.15,204.07,7.55]
[1757098154750,3.36367496,204.4,204.13,7.55]
[1757098154751,5.2,204.31,204.13,7.55]
[1757098154951,124.0,204.3,204.22,3.36367496]
[1757098155154,0.85274262,204.28,204.22,3.36367496]
[1757098155351,0.85274262,204.28,204.17,7.55]
[1757098155555,0.85274262,204.28,204.22,3.36367496]
[1757098156258,0.85274262,204.28,204.24,3.36367496]
[1757098156460,7.47,204.27,204.24,3.36367496]
[1757098156760,0.85274262,204.28,204.24,3.36367496]
[1757098157161,0.85274262,204.28,204.2,3.36367496]
[1757098157162,7.47,204.27,204.25,5.19767084]
[1757098157363,7.47,204.27,204.17,7.55]
[1757098157364,7.47,204.27,204.26,5.19767084]
[1757098160164,141.69,204.27,204.26,5.19767084]
[1757098164165,7.47,204.27,204.26,5.19767084]
[1757098164366,141.39,204.27,204.26,5.19767084]
[1757098165963,141.23,204.27,204.26,5.19767084]
[1757098166358,7.47,204.27,204.26,5.19767084]
[1757098166562,141.23,204.27,204.26,5.19767084]
[1757098166764,141.21,204.27,204.26,5.19767084]
[1757098167462,0.85274262,204.28,204.26,5.19767084]
[1757098167664,7.48,204.33,204.27,18.46391591]
[1757098167867,7.48,204.31,204.28,5.19767084]
[1757098168062,7.48,204.31,204.29,5.19767084]
[1757098168266,7.48,204.31,204.27,7.93]
[1757098168267,7.48,204.31,204.3,5.19767084]
[1757098169268,7.48,204.31,204.27,7.93]
[1757098169571,7.48,204.31,204.28,4.87857064]
[1757098169872,134.38,204.3,204.27,7.93]
[1757098170063,134.38,204.3,204.28,4.87752764]
[1757098170264,7.48,204.31,204.29,4.8758805]
[1757098170468,134.36,204.3,204.23,7.93]
[1757098170766,134.36,204.3,204.25,7.93]
[1757098170962,134.36,204.3,204.26,10.20058567]
[1757098171166,134.36,204.3,204.27,18.13058567]
[1757098171471,134.26,204.29,204.28,4.87415387]
[1757098171968,134.26,204.29,204.28,4.87188746]
[1757098172961,134.26,204.29,204.28,10.19342139]
[1757098173360,141.74,204.29,204.28,10.19342139]
[1757098177176,9.62842417,204.31,204.28,10.19342139]
[1757098177377,133.78,204.29,204.26,7.93]
[1757098177572,7.48,204.31,204.27,10.18915582]
[1757098177875,7.48,204.31,204.28,10.18915582]
[1757098178076,7.48,204.31,204.29,4.85649793]
[1757098178275,7.48,204.31,204.3,4.85649793]
[1757098179380,140.86,204.31,204.3,4.85649793]
[1757098179576,7.48,204.31,204.3,4.85649793]
[1757098179777,140.86,204.31,204.3,4.85649793]
[1757098180682,140.76,204.31,204.3,4.85649793]
[1757098181379,133.28,204.31,204.26,7.93]
[1757098181584,7.48,204.3,204.27,5.33046964]
[1757098181787,140.66,204.3,204.28,5.33046964]
[1757098181975,140.66,204.3,204.26,7.93]
[1757098182581,7.48,204.3,204.26,7.93]
[1757098182886,133.06,204.29,204.26,7.93]
[1757098183285,132.98,204.28,204.27,5.16250139]
[1757098183692,7.48,204.3,204.27,5.16250139]
[1757098183891,132.98,204.29,204.26,7.93]
[1757098184095,132.98,204.29,204.27,5.16245601]
[1757098184390,132.98,204.29,204.26,7.93]
[1757098184590,2.14842417,204.33,204.28,7.93]
[1757098184793,140.3,204.32,204.25,2.14842417]
[1757098184994,2.14842417,204.31,204.26,9.7951994]
[1757098185198,2.14842417,204.31,204.27,5.16330091]
[1757098185384,7.48,204.3,204.26,7.93]
[1757098185589,132.8,204.29,204.27,13.09370387]
[1757098185792,132.78,204.28,204.27,7.93]
[1757098186094,132.78,204.28,204.27,13.09391402]
[1757098186292,132.74,204.28,204.27,17.72674056]
[1757098186698,7.48,204.3,204.27,17.72674056]
[1757098186994,132.72,204.29,204.28,9.79705155]
[1757098187198,7.48,204.3,204.28,9.79705155]
[1757098187390,7.48,204.3,204.27,7.93]
[1757098187391,132.7,204.29,204.27,7.93]
[1757098187591,7.48,204.3,204.28,9.80058083]
[1757098187791,7.48,204.3,204.29,9.80058083]
[1757098187991,140.14,204.3,204.29,9.80058083]
[1757098188601,7.48,204.3,204.29,9.80058083]
[1757098188896,140.02,204.3,204.29,9.80058083]
[1757098189098,140.02,204.3,204.29,9.80185144]
[1757098190101,140.02,204.3,204.29,4.63571383]
[1757098190495,7.48,204.3,204.29,4.63571383]
[1757098190696,139.84,204.3,204.29,4.63571383]
[1757098191595,7.48,204.3,204.29,4.63571383]
[1757098191899,8.02,204.32,204.29,12.67571383]
[1757098192101,79.12,204.31,204.3,4.64550751]
[1757098192400,0.85225186,204.34,204.3,8.04]
[1757098192798,8.02,204.33,204.3,8.04]
[1757098192998,132.22,204.32,204.3,8.04]
[1757098193700,10.16842417,204.35,204.28,8.04]
[1757098193895,132.22,204.34,204.29,4.84830352]
[1757098194097,8.02,204.33,204.28,8.04]
[1757098194299,8.02,204.33,204.29,9.25122314]
[1757098194496,132.22,204.34,204.3,4.84834914]
[1757098194701,140.24,204.34,204.28,8.04]
[1757098195002,140.34,204.33,204.3,8.04]
[1757098195198,132.28,204.32,204.31,4.85395846]
[1757098195502,132.28,204.32,204.31,9.26219605]
[1757098195802,8.02,204.33,204.31,9.26219605]
[1757098195997,8.02,204.33,204.3,8.04]
[1757098195998,132.18,204.32,204.3,8.04]
[1757098196206,132.18,204.32,204.31,4.86036086]
[1757098196501,132.18,204.32,204.31,9.27632383]
[1757098197102,132.18,204.32,204.31,4.41596297]
[1757098197301,132.18,204.32,204.31,9.12512383]
[1757098197501,140.06,204.32,204.31,9.12512383]
[1757098197701,140.06,204.32,204.24,8.04]
[1757098197902,8.02,204.28,204.25,9.1329734]
[1757098198100,10.16842417,204.3,204.26,9.1329734]
[1757098198297,8.02,204.3,204.27,9.15665395]
[1757098198497,43.54,204.29,204.28,9.15665395]
[1757098198693,85.14,204.29,204.28,9.15665395]
[1757098198904,93.16,204.29,204.28,9.15665395]
[1757098199103,8.02,204.29,204.28,9.15665395]
[1757098199804,51.62,204.29,204.28,9.15665395]
[1757098200204,93.04,204.29,204.28,4.4338069]
[1757098200802,8.02,204.29,204.28,4.4338069]
[1757098201006,51.24,204.29,204.28,4.4338069]
[1757098201496,8.02,204.29,204.28,4.4338069]
[1757098201702,43.06,204.29,204.28,16.83423366]
[1757098201904,2.14842417,204.34,204.28,20.72165677]
[1757098202204,82.78,204.33,204.29,8.79423366]
[1757098202403,82.78,204.33,204.3,4.4338069]
[1757098202404,8.02,204.32,204.3,4.4338069]
[1757098202706,8.02,204.32,204.28,8.04]
[1757098202707,8.02,204.32,204.31,4.4338069]
[1757098203308,131.56,204.32,204.31,12.4738069]
[1757098203501,8.87212664,204.37,204.31,4.4338069]
[1757098203701,8.02,204.35,204.32,4.4338069]
[1757098203905,8.02,204.35,204.29,10.18842417]
[1757098204105,133.58842417,204.36,204.3,4.22874548]
[1757098204307,2.14842417,204.35,204.31,4.22874548]
[1757098204501,8.02,204.34,204.32,4.22874548]
[1757098204699,10.16842417,204.35,204.29,8.04]
[1757098204901,8.02,204.34,204.3,4.22859369]
[1757098205209,8.02,204.34,204.31,4.22859369]
[1757098205410,2.14842417,204.35,204.32,4.22859369]
[1757098205608,10.16842417,204.35,204.29,8.04]
[1757098205808,8.02,204.34,204.3,12.26914425]
[1757098206010,2.14842417,204.35,204.31,4.22914425]
[1757098206204,2.14842417,204.35,204.32,4.22914425]
[1757098206410,8.02,204.34,204.3,8.04]
[1757098206708,8.87212664,204.37,204.31,12.26982645]
[1757098206914,139.14,204.36,204.32,12.26982645]
[1757098207111,139.14,204.36,204.32,8.04]
[1757098207312,139.12,204.36,204.33,4.22901794]
[1757098207610,139.12,204.36,204.32,8.04]
[1757098207807,131.1,204.36,204.33,4.23011301]
[1757098208109,141.26842417,204.36,204.32,8.04]
[1757098208310,8.02,204.35,204.33,4.23014841]
[1757098208510,8.02,204.35,204.32,8.04]
[1757098208804,8.02,204.35,204.33,4.23114954]
[1757098209011,8.02,204.35,204.32,8.04]
[1757098209211,8.02,204.35,204.33,4.23113183]
[1757098209406,8.02,204.35,204.32,8.04]
[1757098209606,8.02,204.35,204.33,4.23244366]
[1757098209804,8.02,204.35,204.32,8.04]
[1757098210018,8.02,204.35,204.33,4.23244366]
[1757098210316,8.02,204.35,204.32,8.04]
[1757098211111,131.1,204.36,204.3,2.14842417]
[1757098211310,8.02,204.35,204.31,4.23345326]
[1757098211515,141.26842417,204.36,204.3,2.14842417]
[1757098211712,133.24842417,204.36,204.31,4.23454277]
[1757098212015,8.02,204.35,204.32,4.23454277]
[1757098212216,8.02,204.35,204.3,2.14842417]
[1757098212417,138.58,204.34,204.31,4.23594228]
[1757098212618,138.58,204.34,204.3,2.14842417]
[1757098212917,138.58,204.34,204.31,12.27594228]
[1757098213118,138.58,204.34,204.31,8.04]
[1757098213618,138.54,204.34,204.31,8.04]
[1757098214120,11.02055081,204.37,204.31,8.04]
[1757098214313,8.02,204.35,204.31,8.04]
[1757098214715,107.68,204.34,204.31,8.04]
[1757098215320,8.02,204.35,204.31,8.04]
[1757098215618,96.56,204.35,204.3,2.14842417]
[1757098215818,96.56,204.35,204.31,4.23587018]
[1757098216009,96.56,204.35,204.25,8.04]
[1757098216214,8.02,204.34,204.31,8.04]
[1757098216418,135.067,204.36,204.3,2.14842417]
[1757098216610,143.087,204.36,204.32,8.04]
[1757098217211,143.087,204.36,204.32,10.18842417]
[1757098217417,142.987,204.36,204.33,8.04]
[1757098219118,142.887,204.36,204.33,8.04]
[1757098219718,137.98,204.36,204.33,8.04]
[1757098220115,8.02,204.36,204.33,8.04]
[1757098220421,114.68,204.36,204.33,8.04]
[1757098220618,0.85198061,204.41,204.32,2.14842417]
[1757098220821,7.51,204.4,204.33,4.23670591]
[1757098221019,7.51,204.39,204.35,9.93842417]
[1757098221317,7.51,204.39,204.35,2.14842417]
[1757098221623,7.51,204.39,204.36,7.79]
[1757098222221,129.74,204.4,204.36,7.79]
[1757098222416,129.74,204.4,204.35,2.14842417]
[1757098222618,129.74,204.4,204.36,8.57910797]
[1757098222922,129.74,204.4,204.37,8.57910797]
[1757098223222,7.51,204.39,204.38,8.57910797]
[1757098223821,7.51,204.39,204.38,4.34535938]
[1757098224422,7.51,204.42,204.38,4.34535938]
[1757098224623,4.907,204.43,204.37,2.14842417]
[1757098224823,7.51,204.41,204.38,4.34238096]
[1757098225024,7.51,204.41,204.37,2.14842417]
[1757098225224,129.5,204.42,204.38,4.342211]
[1757098225425,7.51,204.41,204.37,2.14842417]
[1757098225625,7.51,204.41,204.38,4.3412518]
[1757098225823,7.51,204.41,204.39,6.48948724]
[1757098226023,7.51,204.41,204.39,2.14842417]
[1757098228021,136.77,204.41,204.39,2.14842417]
[1757098228224,136.77,204.41,204.3,4.4048]
[1757098228424,129.26,204.41,204.37,2.14842417]
[1757098228627,7.51,204.4,204.38,4.33659746]
[1757098228827,7.51,204.4,204.37,2.14842417]
[1757098229028,7.51,204.4,204.38,4.33681608]
[1757098229324,7.51,204.4,204.37,9.93842417]
[1757098229528,7.51,204.4,204.38,4.33630259]
[1757098229728,7.51,204.4,204.37,9.93842417]
[1757098229928,7.51,204.4,204.38,4.33631649]
[1757098230131,7.51,204.4,204.38,2.14842417]
[1757098230732,7.51,204.42,204.39,7.79]
[1757098231028,129.02,204.42,204.4,2.14842417]
[1757098231228,7.51,204.41,204.4,2.14842417]
[1757098231428,7.51,204.41,204.38,2.14842417]
[1757098231631,7.51,204.41,204.35,7.79]
[1757098231832,7.51,204.41,204.39,2.14842417]
[1757098233033,129.02,204.42,204.39,2.14842417]
[1757098233234,7.51,204.41,204.35,7.79]
[1757098233532,7.51,204.4,204.38,2.14842417]
[1757098233726,7.51,204.4,204.35,7.79]
[1757098233935,7.51,204.4,204.37,2.14842417]
[1757098234131,7.51,204.4,204.38,4.33111129]
[1757098234331,7.51,204.4,204.37,2.14842417]
[1757098234528,7.51,204.4,204.38,4.33063409]
[1757098234729,7.51,204.4,204.37,9.93842417]
[1757098234930,7.51,204.4,204.38,4.33063353]
[1757098235225,136.27,204.42,204.38,7.79]
[1757098235424,128.76,204.42,204.38,7.79]
[1757098235629,141.177,204.42,204.36,3.35246407]
[1757098235933,7.51,204.41,204.37,4.33063754]
[1757098236135,7.51,204.41,204.38,4.33063754]
[1757098236330,7.51,204.41,204.37,7.79]
[1757098236527,7.51,204.41,204.38,4.33129227]
[1757098236732,7.51,204.41,204.37,7.79]
[1757098236931,7.51,204.41,204.38,12.12243011]
[1757098237130,7.51,204.41,204.39,4.33243011]
[1757098237333,7.51,204.41,204.4,4.33243011]
[1757098238736,7.51,204.41,204.35,11.14246407]
[1757098238937,140.917,204.42,204.36,12.11832214]
[1757098239131,7.51,204.41,204.37,12.11832214]
[1757098239324,7.51,204.41,204.38,4.32832214]
[1757098239530,7.51,204.41,204.39,4.32832214]
[1757098239730,140.857,204.42,204.36,7.79]
[1757098239932,7.51,204.41,204.37,12.11827816]
[1757098240127,7.51,204.41,204.38,4.32827816]
[1757098240426,7.51,204.41,204.39,4.32827816]
[1757098240627,7.51,204.41,204.37,7.79]
[1757098240830,4.907,204.45,204.39,7.79]
[1757098241029,12.417,204.43,204.4,12.11810406]
[1757098241233,12.417,204.43,204.41,4.32810406]
[1757098241234,135.79,204.43,204.41,4.32810406]
[1757098241428,135.79,204.43,204.4,7.79]
[1757098241833,135.81,204.43,204.4,7.79]
[1757098242637,7.51,204.42,204.4,7.79]
[1757098242838,7.51,204.42,204.39,7.79]
[1757098243034,7.51,204.42,204.4,4.32899933]
[1757098243239,7.51,204.42,204.41,4.32899933]
[1757098245038,133.207,204.43,204.41,4.32899933]
[1757098245238,133.207,204.43,204.37,3.35246407]
[1757098245438,4.907,204.44,204.39,7.79]